bitfinex-derivatives/quotes_ETHF0:USTF0_20250807
["timestamp","ask_amount","ask_price","bid_price","bid_amount"]
[1754602297651,42.4639,3873.5,3873.4,0.5482]
[1754602297950,42.3132,3873.5,3873.4,0.3301]
[1754602298158,2.18012,3873.2,3873.0,3.72404]
[1754602298348,1.5132,3873.1,3873.0,4.6743]
[1754602298755,1.5132,3873.1,3873.0,5.52064]
[1754602299852,1.5132,3873.1,3873.0,4.27224]
[1754602300047,1.5132,3873.1,3873.0,0.3301]
[1754602300048,1.6639,3873.1,3873.0,0.3301]
[1754602300448,0.7748,3872.8,3872.7,0.51628]
[1754602300751,42.4639,3872.8,3872.7,0.84638]
[1754602300945,41.5384,3872.8,3872.6,3.2078]
[1754602301154,1.6639,3872.7,3872.6,3.2078]
[1754602301958,1.6639,3872.7,3872.6,3.5379]
[1754602303260,1.6639,3872.7,3872.6,4.0542]
[1754602303648,1.6639,3872.7,3872.6,3.5379]
[1754602304057,1.6639,3872.7,3872.6,0.3301]
[1754602304655,1.6639,3872.7,3872.6,0.5603]
[1754602304854,1.5132,3872.7,3872.6,1.1055]
[1754602305050,1.5132,3872.7,3872.6,1.3936]
[1754602305255,1.5132,3872.7,3872.6,1.8091]
[1754602305761,0.2854,3872.7,3872.6,1.8091]
[1754602305957,1.4971,3872.7,3872.6,4.2951]
[1754602306256,40.8,3872.8,3872.2,3.9832]
[1754602306257,1.4864,3872.3,3872.2,3.9832]
[1754602306456,1.4864,3872.3,3872.2,4.9987]
[1754602306457,0.2747,3872.3,3872.2,4.9987]
[1754602306656,0.2747,3872.4,3872.3,1.86784]
[1754602306861,1.2595,3872.4,3872.3,2.30724]
[1754602307065,1.4864,3872.4,3872.3,2.30724]
[1754602307370,42.2864,3872.4,3872.3,2.30724]
[1754602311261,41.0747,3872.4,3872.3,2.30724]
[1754602311571,40.8,3872.4,3872.3,2.30724]
[1754602312369,41.2472,3872.4,3872.3,2.30724]
[1754602313167,0.9515,3873.1,3873.0,1.24375]
[1754602313371,1.4891,3873.1,3873.0,2.30715]
[1754602313565,1.8264,3873.1,3873.0,2.30715]
[1754602313766,0.2747,3873.1,3873.0,2.30715]
[1754602313964,1.4891,3873.1,3873.0,1.7909]
[1754602314265,42.6264,3873.1,3873.0,1.7909]
[1754602317469,43.33484732,3873.1,3873.0,1.7909]
[1754602317766,42.67104732,3873.1,3873.0,1.7909]
[1754602317971,41.5219,3873.1,3873.0,1.7909]
[1754602318667,41.8484,3873.1,3873.0,1.7909]
[1754602318966,41.5219,3873.1,3873.0,1.7909]
[1754602320072,41.8484,3873.1,3873.0,1.7909]
[1754602320473,42.1857,3873.1,3873.0,1.7909]
[1754602320867,42.70194,3873.1,3873.0,1.7909]
[1754602321075,42.1857,3873.1,3873.0,1.7909]
[1754602324477,1.62725,3873.0,3872.8,0.336]
[1754602324679,1.0527,3872.7,3872.6,3.8557]
[1754602324876,1.8264,3872.7,3872.6,4.0859]
[1754602325278,1.8264,3872.7,3872.6,4.7106]
[1754602325580,1.8264,3872.7,3872.6,5.515]
[1754602325882,1.8264,3872.7,3872.6,2.3072]
[1754602326575,1.8264,3872.7,3872.6,0.3119]
[1754602326976,1.8264,3872.7,3872.6,1.0873]
[1754602327177,42.6264,3872.7,3872.6,1.0873]
[1754602327389,42.6264,3872.7,3872.6,1.5028]
[1754602328974,41.2472,3872.7,3872.6,1.7909]
[1754602330086,41.911,3872.7,3872.6,1.7909]
[1754602332384,41.911,3872.7,3872.6,1.3754]
[1754602332585,41.911,3872.7,3872.6,1.0873]
[1754602333480,1.7715,3872.3,3872.2,1.55275]
[1754602333685,1.7715,3872.3,3872.2,1.96475]
[1754602333982,1.7715,3872.3,3872.2,2.29055]
[1754602334388,1.7715,3872.3,3872.2,1.7742]
[1754602335679,42.5715,3872.3,3872.2,1.7742]
[1754602335880,40.8,3872.3,3872.2,1.7742]
[1754602336084,40.8,3872.3,3872.2,19.3622]
[1754602339198,4.9793,3873.2,3873.1,1.21134]
[1754602339388,5.9209352,3873.2,3873.1,2.29044]
[1754602339583,44.0293652,3873.2,3873.1,1.7742]
[1754602339787,43.5131352,3873.2,3873.1,1.7742]
[1754602340090,43.51313618,3873.2,3873.1,1.7742]
[1754602340288,44.02936618,3873.2,3873.1,1.7742]
[1754602340488,43.51313618,3873.2,3873.1,1.7742]
[1754602341288,43.31658994,3873.2,3873.1,1.7742]
[1754602341484,44.0295316,3873.2,3873.1,1.7742]
[1754602341689,44.0295316,3873.2,3872.5,3.2078]
[1754602341690,44.0295316,3873.2,3872.9,0.3258]
[1754602341885,0.9418016,3873.1,3872.9,0.51625]
[1754602342090,2.7133016,3873.1,3873.0,0.8334]
[1754602342297,2.7133016,3873.1,3873.0,1.0885]
[1754602342689,2.7133016,3873.1,3872.9,0.51625]
[1754602342896,2.28779,3872.7,3872.5,3.2078]
[1754602343097,1.7715,3872.7,3872.6,0.51631]
[1754602343293,0.7053,3872.7,3872.5,0.51631]
[1754602343490,0.7562,3872.5,3872.3,0.3413]
[1754602343798,0.94189252,3872.9,3872.0,3.2078]
[1754602343799,1.7715,3872.1,3872.0,5.22468]
[1754602344096,42.5715,3872.1,3872.0,5.49838]
[1754602344292,40.8,3872.1,3872.0,4.81268]
[1754602344490,42.26924751,3872.1,3872.0,5.49838]
[1754602345098,41.5562,3872.1,3872.0,5.49838]
[1754602347493,41.8662,3872.1,3872.0,5.49838]
[1754602348596,41.5562,3872.1,3872.0,5.49838]
[1754602349496,41.8662,3872.1,3872.0,5.49838]
[1754602354497,1.7715,3871.9,3871.8,0.01013]
[1754602355397,1.7715,3871.9,3871.8,0.55033]
[1754602355597,1.7715,3871.9,3871.8,0.89163]
[1754602356394,1.7715,3871.9,3871.8,1.09863]
[1754602357198,1.7715,3871.9,3871.8,1.51063]
[1754602360799,0.2848,3871.9,3871.8,1.37233]
[1754602361009,41.237,3872.1,3872.0,1.7742]
[1754602361205,41.237,3872.1,3872.0,19.3632]
[1754602362708,41.5562,3872.1,3872.0,19.3632]
[1754602365101,41.237,3872.1,3872.0,19.3632]
[1754602366303,41.5684,3872.1,3872.0,19.3632]
[1754602369509,40.8,3872.1,3872.0,19.3632]
[1754602370013,41.2327,3872.1,3872.0,19.3632]
[1754602370212,41.5641,3872.1,3872.0,19.3632]
[1754602370611,40.8,3872.1,3872.0,19.3632]
[1754602373315,41.2327,3872.1,3872.0,18.636]
[1754602373513,41.8874,3872.1,3872.0,19.3356]
[1754602378915,41.8874,3872.1,3871.8,3.21793]
[1754602379220,1.8029,3871.9,3871.8,0.01013]
[1754602379420,19.3889,3871.9,3871.8,0.01013]
[1754602379821,60.1889,3871.9,3871.8,0.01013]
[1754602380515,1.8029,3871.3,3871.2,18.10249]
[1754602380711,0.7155,3871.1,3871.0,3.2078]
[1754602381010,0.7155,3871.1,3870.9,19.03252426]
[1754602381011,1.8029,3871.1,3870.9,19.03252426]
[1754602381218,41.1233,3871.0,3870.9,19.03252426]
[1754602381421,41.8874,3871.0,3870.9,20.07602426]
[1754602381623,41.8874,3871.0,3870.9,20.49742426]
[1754602381812,41.8874,3871.0,3870.9,20.78152426]
[1754602383123,41.8874,3871.0,3870.9,20.07602426]
[1754602384525,41.8874,3871.0,3870.9,0.93000426]
[1754602384719,60.19151798,3871.0,3870.9,0.93000426]
[1754602386121,42.60351798,3871.0,3870.9,0.93000426]
[1754602386326,42.60351798,3871.0,3870.9,1.97350426]
[1754602386513,41.8874,3871.0,3870.9,1.97350426]
[1754602386718,41.8874,3871.0,3870.9,2.39490426]
[1754602386917,41.8874,3871.0,3870.9,2.67900426]
[1754602387127,41.2327,3871.0,3870.9,2.67900426]
[1754602387620,41.8874,3871.0,3870.9,2.67900426]
[1754602390222,41.8874,3871.0,3870.9,0.93000426]
[1754602390418,0.7155,3870.3,3870.2,0.5106]
[1754602390722,1.8029,3870.3,3870.2,2.26562]
[1754602391026,1.8029,3870.6,3870.5,0.702]
[1754602391524,1.8029,3870.6,3869.7,3.72449]
[1754602391525,0.51664,3870.1,3869.7,3.72449]
[1754602391724,1.8029,3869.8,3869.7,3.72449]
[1754602391924,2.31958,3869.8,3869.7,3.2078]
[1754602392125,42.6029,3869.8,3869.7,3.2078]
[1754602392721,1.8029,3869.5,3869.4,19.85573]
[1754602393822,42.6029,3869.5,3869.4,19.85573]
[1754602394025,41.9482,3869.5,3869.4,19.85573]
[1754602394625,40.8,3869.5,3869.4,19.85573]
[1754602394826,41.2437,3869.5,3869.4,19.85573]
[1754602395130,40.8,3869.5,3869.4,19.85573]
[1754602398227,40.8,3869.5,3869.4,2.26573]
[1754602398527,40.8,3869.5,3869.4,19.85873]
[1754602400327,4.3589,3870.3,3870.2,1.358]
[1754602400528,1.4589,3870.3,3870.2,1.7849]
[1754602400732,3.2078,3870.7,3870.2,1.7849]
[1754602401034,3.2078,3870.7,3870.6,2.30147]
[1754602401035,4.9897,3870.7,3870.6,2.30147]
[1754602401331,45.7897,3870.7,3870.6,2.30147]
[1754602401721,42.2589,3870.7,3870.6,2.30147]
[1754602401928,41.5074,3870.7,3870.6,2.30147]
[1754602402333,41.5074,3870.7,3870.6,19.89547]
[1754602402535,41.9511,3870.7,3870.6,19.89547]
[1754602402828,42.2589,3870.7,3870.6,19.89547]
[1754602404532,40.8,3870.7,3870.6,19.89547]
[1754602405034,40.8,3870.7,3870.6,23.10327]
[1754602407531,40.8,3870.7,3870.6,21.31837]
[1754602407731,1.7819,3870.5,3870.4,1.2537]
[1754602407937,1.7819,3870.5,3870.4,19.3769]
[1754602408240,0.7074,3870.3,3870.2,17.592]
[1754602408439,1.7819,3870.3,3870.2,17.592]
[1754602408739,1.7819,3870.3,3870.2,18.4506]
[1754602408939,1.4589,3870.3,3870.2,19.3769]
[1754602409536,0.2748,3870.3,3870.2,19.89353]
[1754602409731,0.7667,3870.6,3870.2,19.89353]
[1754602410037,1.7819,3870.5,3870.4,1.7849]
[1754602410239,1.7819,3870.5,3870.4,19.3789]
[1754602410833,1.3382,3870.5,3870.4,19.3789]
[1754602411145,1.7819,3870.5,3870.4,19.3789]
[1754602414333,2.29849,3870.5,3870.4,19.3789]
[1754602414540,1.7819,3870.5,3870.4,19.3789]
[1754602416137,0.7074,3870.2,3870.1,3.2078]
[1754602416337,1.7819,3870.2,3870.1,21.1199]
[1754602416537,0.7074,3869.8,3869.7,4.44229]
[1754602416741,42.5819,3869.8,3869.7,22.78129]
[1754602417341,42.2589,3869.8,3869.7,23.10139]
[1754602418841,42.2589,3869.8,3869.7,22.5847]
[1754602419142,42.5819,3869.8,3869.7,19.3769]
[1754602420739,42.2589,3869.8,3869.7,19.3769]
[1754602421442,42.5819,3869.8,3869.7,19.3769]
[1754602423337,42.2589,3869.8,3869.7,19.3769]
[1754602423740,41.9511,3869.8,3869.7,19.3769]
[1754602424544,42.2515,3869.8,3869.7,19.3769]
[1754602425047,41.9511,3869.8,3869.7,19.3769]
[1754602425233,42.2515,3869.8,3869.7,19.3769]
[1754602425439,42.5609,3869.8,3869.7,19.3769]
[1754602425639,42.2515,3869.8,3869.7,17.592]
[1754602425837,42.5609,3869.8,3869.7,17.592]
[1754602426041,42.5609,3869.8,3869.7,19.4187]
[1754602426241,42.5609,3869.8,3869.7,17.592]
[1754602426441,42.5609,3869.8,3869.7,18.6678]
[1754602426643,42.5609,3869.8,3869.7,19.4187]
[1754602427542,42.5609,3869.8,3869.7,1.8267]
[1754602427947,42.2515,3869.8,3869.7,1.8267]
[1754602428848,40.8,3869.8,3869.7,1.8267]
[1754602431547,41.2097,3869.8,3869.7,1.8267]
[1754602432348,40.8,3869.8,3869.7,1.8267]
[1754602437053,0.51658,3870.6,3869.7,1.8267]
[1754602437054,1.0195,3870.8,3869.9,0.643]
[1754602437360,1.4188,3870.1,3870.0,23.14515]
[1754602437545,42.2188,3870.1,3870.0,23.14515]
[1754602438653,41.9184,3870.1,3870.0,23.14515]
[1754602439254,42.2188,3870.1,3870.0,23.14515]
[1754602440861,41.5087,3870.1,3870.0,21.75125]
[1754602441158,41.5087,3870.1,3870.0,23.14515]
[1754602441159,42.5282,3870.1,3870.0,23.14515]
[1754602442658,40.8,3870.1,3870.0,23.14515]
[1754602442851,41.2097,3870.1,3870.0,23.14515]
[1754602443057,41.5101,3870.1,3870.0,23.14515]
[1754602443458,40.8,3870.1,3870.0,23.14515]
[1754602443858,41.5101,3870.1,3870.0,23.14515]
[1754602444558,40.8,3870.1,3870.0,23.14515]
[1754602457756,41.2494,3870.1,3870.0,23.14515]
[1754602458855,41.5644,3870.1,3870.0,23.14515]
[1754602459065,41.8837,3870.1,3870.0,23.14515]
[1754602459661,41.8837,3870.1,3870.0,21.31845]
[1754602460761,41.8837,3870.1,3870.0,20.86395]
[1754602461558,41.8837,3870.1,3870.0,18.11065]
[1754602462054,41.8837,3870.1,3870.0,0.51665]
[1754602465561,41.8837,3870.1,3870.0,2.29175]
[1754602465869,41.5644,3870.1,3870.0,2.29175]
[1754602466170,41.8837,3870.1,3870.0,2.29175]
[1754602466958,41.8837,3870.1,3870.0,0.51665]
[1754602467370,41.8837,3870.1,3870.0,0.82655]
[1754602467670,41.8837,3870.1,3870.0,0.51665]
[1754602467866,1.7768,3870.0,3869.9,3.2078]
[1754602468060,1.7768,3869.6,3869.5,3.72452]
[1754602468962,1.7768,3869.6,3869.5,4.99022]
[1754602469162,1.7768,3869.6,3869.5,5.49962]
[1754602469663,42.5768,3869.6,3869.5,5.49962]
[1754602470365,41.2062,3869.6,3869.5,5.49962]
[1754602470571,41.5212,3869.6,3869.5,5.49962]
[1754602470767,42.2899,3869.6,3869.5,5.49962]
[1754602471273,42.80661,3869.6,3869.5,4.52962]
[1754602471564,42.2899,3869.6,3869.5,3.2078]
[1754602471769,1.4899,3869.3,3869.2,0.51676]
[1754602471966,1.7768,3869.3,3869.2,18.10776]
[1754602472468,42.5768,3869.3,3869.2,18.10776]
[1754602472774,1.7768,3869.2,3869.1,3.2078]
[1754602473773,1.7768,3869.2,3869.1,3.7136]
[1754602474072,1.7768,3869.2,3869.1,22.5739]
[1754602474967,1.7768,3869.2,3869.1,22.1303]
[1754602475472,1.7768,3869.2,3869.1,22.5739]
[1754602475966,1.4575,3869.2,3869.1,22.5739]
[1754602476672,40.8,3869.3,3869.2,1.22206]
[1754602476969,41.115,3869.3,3869.2,2.29186]
[1754602477166,41.5644,3869.3,3869.2,2.29186]
[1754602481378,41.8837,3869.3,3869.2,2.29186]
[1754602482076,41.5644,3869.3,3869.2,2.29186]
[1754602488480,41.2494,3869.3,3869.2,2.29186]
[1754602488683,0.9433,3870.0,3869.9,1.49507]
[1754602488978,1.71837723,3870.3,3870.2,1.92103]
[1754602489178,42.51837723,3870.3,3870.2,1.92103]
[1754602489684,42.51851409,3870.3,3870.2,1.92103]
[1754602490780,41.06571409,3870.3,3870.2,2.22043]
[1754602492780,42.13424705,3870.3,3870.2,18.59903]
[1754602493174,42.13424705,3870.3,3870.2,1.00803]
[1754602493382,1.7645,3870.2,3870.1,17.591]
[1754602493583,1.47838705,3870.2,3869.7,3.2078]
[1754602493882,1.4514,3869.9,3869.8,17.591]
[1754602494182,1.7645,3869.8,3869.7,17.59]
[1754602494881,42.5645,3869.8,3869.7,17.59]
[1754602495081,42.83024705,3869.8,3869.7,18.10669]
[1754602495779,42.8303219,3869.8,3869.7,18.10669]
[1754602496881,43.3470019,3869.8,3869.7,17.59]
[1754602497180,43.3470019,3869.8,3869.4,0.2967]
[1754602497181,1.7645,3869.5,3869.4,0.51673]
[1754602497679,1.7645,3869.5,3869.4,18.10673]
[1754602497879,1.7645,3869.5,3869.4,0.51673]
[1754602499775,1.7645,3869.5,3869.2,17.591]
[1754602499776,1.7645,3869.4,3869.3,0.51674]
[1754602500575,1.7645,3869.4,3869.3,1.20854]
[1754602500781,1.7645,3869.4,3869.3,1.63454]
[1754602501883,1.7645,3869.4,3869.3,2.22054]
[1754602504285,1.7645,3869.4,3869.3,1.92114]
[1754602504484,1.4514,3869.4,3869.3,2.22054]
[1754602504683,1.7645,3869.4,3869.3,2.22054]
[1754602505985,1.7645,3869.4,3869.3,1.92114]
[1754602507086,1.7645,3869.4,3869.3,1.20854]
[1754602507785,1.7645,3869.4,3869.3,2.22054]
[1754602512587,2.03029784,3869.4,3869.3,2.22054]
[1754602512785,1.7645,3869.4,3869.3,2.22054]
[1754602513386,2.03029784,3869.4,3869.3,2.22054]
[1754602513693,1.7645,3869.4,3869.3,2.22054]
[1754602513889,2.03029784,3869.4,3869.3,1.92114]
[1754602514191,1.7645,3869.4,3869.3,1.92114]
[1754602514392,2.04043088,3869.4,3869.3,1.92114]
[1754602515087,1.7645,3869.4,3869.3,1.92114]
[1754602515288,2.04043088,3869.4,3869.3,1.92114]
[1754602515488,1.7645,3869.4,3869.3,1.92114]
[1754602515694,2.04043088,3869.4,3869.3,1.92114]
[1754602515993,1.7645,3869.4,3869.3,2.23534]
[1754602516193,2.04043088,3869.4,3869.3,5.44314]
[1754602516390,1.7645,3869.4,3869.3,5.44314]
[1754602516691,1.255,3869.4,3869.3,5.44314]
[1754602517091,1.53093088,3869.4,3869.3,5.44314]
[1754602517293,1.7723,3869.4,3869.3,5.44314]
[1754602517689,2.04823088,3869.4,3869.3,5.44314]
[1754602517890,1.7723,3869.4,3869.3,5.44314]
[1754602518296,2.04823088,3869.4,3869.3,5.44314]
[1754602518593,1.7723,3869.4,3869.3,5.44314]
[1754602519092,2.04812166,3869.4,3869.3,5.44314]
[1754602519295,1.7723,3869.4,3869.3,5.44314]
[1754602519894,2.04812166,3869.4,3869.3,5.44314]
[1754602520098,1.7723,3869.4,3869.3,5.44314]
[1754602520498,0.27582166,3869.4,3869.3,5.46454]
[1754602520897,1.52032166,3869.4,3869.3,5.46454]
[1754602521099,1.2445,3869.4,3869.3,5.46454]
[1754602521299,1.5639,3869.4,3869.3,5.46454]
[1754602521500,1.83972166,3869.4,3869.3,5.46454]
[1754602521696,1.7618,3869.4,3869.3,5.46454]
[1754602522096,2.03762166,3869.4,3869.3,5.46454]
[1754602522400,2.03762166,3869.4,3869.3,22.46704]
[1754602522800,2.03762166,3869.4,3869.3,22.78124]
[1754602523000,1.7618,3869.4,3869.3,22.78124]
[1754602523201,2.03762166,3869.4,3869.3,23.08244]
[1754602523400,1.7618,3869.4,3869.3,23.08244]
[1754602523600,2.03762166,3869.4,3869.3,23.08244]
[1754602524104,42.83762166,3869.4,3869.3,23.08244]
[1754602524400,42.83762166,3869.4,3869.3,22.76824]
[1754602524602,42.83762166,3869.4,3869.3,19.56044]
[1754602526600,42.83762166,3869.4,3869.3,19.87464]
[1754602527203,42.5618,3869.4,3869.3,19.87464]
[1754602527398,42.83747039,3869.4,3869.3,19.87464]
[1754602528105,42.83746667,3869.4,3869.3,19.87464]
[1754602528507,42.5618,3869.4,3869.3,19.87464]
[1754602528706,42.83747021,3869.4,3869.3,19.87464]
[1754602529508,42.07147021,3869.4,3869.3,19.45064]
[1754602529703,42.83747021,3869.4,3869.3,19.87464]
[1754602529901,2.27856,3869.2,3869.1,0.92417]
[1754602530108,2.27856,3869.2,3869.1,19.25927]
[1754602530311,1.7618,3869.2,3869.1,19.87467]
[1754602530503,2.02806918,3869.2,3869.1,19.87467]
[1754602531401,1.4424,3869.2,3869.1,19.87467]
[1754602533604,1.7618,3869.2,3869.1,19.87467]
[1754602535003,0.4835,3869.2,3869.1,18.83527]
[1754602535202,1.7618,3869.2,3869.1,19.87467]
[1754602536000,1.4424,3869.2,3869.1,19.87467]
[1754602536206,1.2445,3869.2,3869.1,19.87467]
[1754602537112,1.7618,3869.2,3869.1,19.87467]
[1754602537515,1.7618,3869.2,3869.0,0.51678]
[1754602537701,1.7618,3868.9,3868.8,3.2078]
[1754602538010,1.7618,3868.9,3868.4,0.7441]
[1754602538011,1.0804,3868.9,3868.5,0.51684]
[1754602538211,1.7618,3868.6,3868.5,0.51684]
[1754602538606,42.5618,3868.6,3868.5,0.51684]
[1754602538812,42.5618,3868.6,3868.5,0.83694]
[1754602539107,43.07865,3868.6,3868.4,21.31466]
[1754602539306,1.7618,3868.5,3868.4,21.31466]
[1754602539507,0.9958,3868.5,3868.4,22.04216]
[1754602539707,1.7618,3868.5,3868.4,22.46616]
[1754602539915,2.27865,3868.5,3868.4,21.5253]
[1754602540114,1.7618,3868.5,3868.4,21.5253]
[1754602540409,1.7618,3868.5,3868.4,17.9101]
[1754602540620,1.7618,3868.5,3868.4,18.7415]
[1754602540804,1.7618,3868.5,3868.4,19.0557]
[1754602541110,1.7618,3868.5,3868.4,19.3569]
[1754602541710,1.7618,3868.5,3868.4,18.3175]
[1754602542718,1.7618,3868.5,3868.4,0.5209]
[1754602542914,1.7618,3868.5,3868.4,0.3201]
[1754602543222,0.6771,3868.2,3868.1,0.7072]
[1754602543519,1.7181,3868.2,3868.1,18.2982]
[1754602543720,1.7181,3868.2,3868.1,17.994]
[1754602543917,1.7181,3868.2,3868.1,0.2007]
[1754602544110,0.5169,3868.1,3868.0,20.7988]
[1754602544422,2.235,3868.1,3868.0,3.2078]
[1754602544620,43.035,3868.1,3868.0,0.51692]
[1754602544817,43.035,3868.1,3867.9,1.44765558]
[1754602545022,43.035,3868.1,3867.9,1.75185558]
[1754602545023,1.7181,3868.0,3867.9,1.75185558]
[1754602545423,1.7181,3868.0,3867.9,2.15485558]
[1754602545720,1.7181,3868.0,3867.9,1.44765558]
[1754602545913,1.7181,3868.0,3867.9,3.19615558]
[1754602546317,1.7181,3868.0,3867.9,2.15485558]
[1754602546723,1.7181,3868.0,3867.9,2.59095558]
[1754602547423,1.7181,3868.0,3867.9,3.19615558]
[1754602550827,1.404,3868.0,3867.9,3.19615558]
[1754602551025,1.7181,3868.0,3867.9,3.19615558]
[1754602554329,1.7181,3868.0,3867.9,2.67922558]
[1754602572236,1.96821021,3868.0,3867.9,2.67922558]
[1754602572436,19.56121021,3868.0,3867.9,0.93072558]
[1754602573034,20.26959235,3868.0,3867.9,0.93072558]
[1754602573440,61.06959235,3868.0,3867.9,0.93072558]
[1754602576238,61.06959235,3868.0,3867.9,0.47582558]
[1754602577141,61.0682287,3868.0,3867.9,0.47582558]
[1754602577341,42.7214287,3868.0,3867.9,0.47582558]
[1754602577638,61.0531287,3868.0,3867.9,2.17752558]
[1754602577842,61.0531287,3868.0,3867.9,1.89552558]
[1754602578533,61.0531287,3868.0,3867.9,0.96092558]
[1754602580242,61.0527256,3868.0,3867.9,1.89552558]
[1754602580744,61.05269912,3868.0,3867.9,2.17752558]
[1754602581138,43.45969912,3868.0,3867.9,2.17752558]
[1754602581338,61.05369912,3868.0,3867.9,2.17752558]
[1754602586043,61.05321855,3868.0,3867.9,2.17752558]
[1754602588948,60.80538214,3868.0,3867.9,2.17752558]
[1754602589141,61.05330208,3868.0,3867.9,2.17752558]
[1754602592452,61.05330208,3868.0,3867.9,0.47582558]
[1754602592843,61.05330208,3868.0,3867.9,0.76762558]
[1754602593452,61.05330208,3868.0,3867.9,1.20962558]
[1754602594050,61.05330208,3868.0,3867.9,0.76762558]
[1754602597752,61.05330208,3868.0,3867.9,1.40292558]
[1754602597949,43.21138214,3868.0,3867.9,2.17752558]
[1754602598254,61.0525436,3868.0,3867.9,2.17752558]
[1754602598554,61.0525721,3868.0,3867.9,2.17752558]
[1754602599051,61.05256822,3868.0,3867.9,2.17752558]
[1754602599258,61.05256822,3868.0,3867.9,1.41042558]
[1754602599551,61.05256822,3868.0,3867.9,2.17752558]
[1754602605260,43.45956822,3868.0,3867.9,2.17752558]
[1754602605561,61.05156822,3868.0,3867.9,2.17752558]
[1754602606857,60.80338214,3868.0,3867.9,2.17752558]
[1754602607058,61.05571115,3868.0,3867.9,2.17752558]
[1754602607559,61.05571267,3868.0,3867.9,2.17752558]
[1754602610757,61.05571267,3868.0,3867.9,1.89552558]
[1754602615657,61.05571267,3868.0,3867.9,2.19532558]
[1754602615858,61.05565283,3868.0,3867.9,2.19532558]
[1754602617360,61.05565283,3868.0,3867.9,1.89552558]
[1754602617565,61.05565283,3868.0,3867.9,0.47582558]
[1754602617966,61.05565283,3868.0,3867.9,0.76182558]
[1754602618160,61.05565283,3868.0,3867.9,0.47582558]
[1754602618372,0.51705,3867.0,3866.9,1.6948]
[1754602619261,41.31705,3867.0,3866.9,1.6948]
[1754602619461,41.86022069,3867.0,3866.9,1.6948]
[1754602619768,60.16712069,3867.0,3866.9,1.6948]
[1754602621067,59.86752069,3867.0,3866.9,1.395]
[1754602621269,60.16712069,3867.0,3866.9,1.6948]
[1754602622067,0.51712,3866.4,3866.3,0.01067]
[1754602622367,22.98232,3866.4,3866.3,1.40567]
[1754602622666,64.03459069,3866.4,3866.3,1.40567]
[1754602623060,41.05227069,3866.4,3866.3,1.70547]
[1754602623464,42.05907069,3866.4,3866.3,1.70547]
[1754602623667,41.8068,3866.4,3866.3,1.70547]
[1754602623865,59.65085557,3866.4,3866.3,1.70547]
[1754602624067,59.65085892,3866.4,3866.3,1.70547]
[1754602624266,59.3988,3866.4,3866.3,1.70547]
[1754602624968,41.8068,3866.4,3866.3,1.70547]
[1754602625169,59.4078,3866.4,3866.3,1.70547]
[1754602625769,62.6156,3866.4,3866.3,1.40567]
[1754602626067,62.86739415,3866.4,3866.3,1.40567]
[1754602626261,62.6156,3866.4,3866.3,0.29667]
[1754602626461,62.8672965,3866.4,3866.3,0.01067]
[1754602626663,62.86732119,3866.4,3866.3,0.01067]
[1754602626865,62.8673189,3866.4,3866.3,0.01067]
[1754602627663,1.2501,3865.6,3865.5,0.6775]
[1754602627862,19.2684,3865.6,3865.5,1.4088]
[1754602628265,19.78563,3865.6,3865.5,1.6948]
[1754602628463,60.58563,3865.6,3865.5,1.6948]
[1754602630373,60.0684,3865.6,3865.5,1.6948]
[1754602630558,42.1668,3865.6,3865.5,1.6948]
[1754602630764,59.7688,3865.6,3865.5,1.6948]
[1754602633069,59.7688,3865.6,3865.1,3.2078]
[1754602633070,0.51728,3865.2,3865.1,2.63475]
[1754602633282,1.18131,3865.0,3864.9,0.93144801]
[1754602633462,0.1963,3865.0,3864.9,2.64384801]
[1754602633766,0.51724,3865.6,3865.3,1.7124]
[1754602633971,28.16843653,3867.8,3865.0,0.51731]
[1754602633972,3.2078,3865.9,3865.8,1.7124]
[1754602634172,44.0078,3865.9,3865.8,1.7124]
[1754602634968,0.51728,3865.3,3864.9,0.93144801]
[1754602635172,1.91946,3865.4,3865.3,1.1301]
[1754602635781,2.19826,3865.4,3865.3,1.424]
[1754602635974,2.19826,3865.4,3865.3,1.7124]
[1754602636174,2.19826,3865.4,3865.3,1.424]
[1754602636381,2.19826,3865.4,3865.3,0.9736]
[1754602636769,2.19826,3865.4,3865.3,1.424]
[1754602636980,19.98826,3865.4,3865.3,1.7124]
[1754602637676,1.7307,3865.1,3865.0,1.7124]
[1754602637872,1.9195,3865.1,3865.0,1.7124]
[1754602638077,2.1983,3865.1,3865.0,0.9736]
[1754602638384,42.9983,3865.1,3865.0,0.9736]
[1754602638780,42.9983,3865.1,3865.0,1.424]
[1754602639776,42.9983,3865.1,3865.0,0.9736]
[1754602639976,42.9983,3865.1,3865.0,1.424]
[1754602642384,46.2061,3865.1,3865.0,1.424]
[1754602643881,46.2061,3865.1,3864.9,0.93144801]
[1754602644086,19.453,3865.0,3864.9,1.90504801]
[1754602644385,19.453,3865.0,3864.9,2.64384801]
[1754602644786,60.253,3865.0,3864.9,2.64384801]
[1754602649884,58.572,3865.0,3864.9,2.64384801]
[1754602650085,40.8,3865.0,3864.9,2.64384801]
[1754602653384,40.8,3865.0,3864.9,5.85164801]
[1754602653583,3.2078,3865.5,3865.4,1.7086]
[1754602653891,17.751,3865.5,3865.4,1.7086]
[1754602654085,18.26922,3865.7,3865.4,0.6797]
[1754602654286,0.7692788,3865.6,3865.5,1.7086]
[1754602654492,41.5692788,3865.6,3865.5,1.7086]
[1754602655088,41.0520388,3865.6,3865.5,1.7086]
[1754602655289,41.3543388,3865.6,3865.5,1.7086]
[1754602655491,41.7902388,3865.6,3865.5,1.7086]
[1754602655888,41.3543388,3865.6,3865.5,1.7086]
[1754602656490,41.0520388,3865.6,3865.5,1.7086]